fUST/lending_fUST_20251231
["ID","MTS","AMOUNT","RATE_DAILY","PERIOD"]
[400131663,1767142252800,-250.0,0.00024867,2]
[400131664,1767142252810,-151.0,0.00024867,2]
[400131665,1767142252819,-151.0,0.00024867,2]
[400131666,1767142252829,-151.0,0.00024867,2]
[400131667,1767142252839,-1000.0,0.00024867,2]
[400131668,1767142252848,-151.0,0.00024867,2]
[400131669,1767142252858,-151.0,0.00024867,2]
[400131670,1767142252868,-1000.0,0.00024867,2]
[400131671,1767142252877,-151.0,0.00024867,2]
[400131672,1767142252887,-1000.0,0.00024867,2]
[400131673,1767142252897,-151.0,0.00024867,2]
[400131674,1767142252907,-1000.0,0.00024867,2]
[400131675,1767142252917,-500.0,0.00024867,2]
[400131676,1767142252926,-181.08010149,0.00024867,2]
[400131677,1767142252936,-151.0,0.00024867,2]
[400131678,1767142252945,-1000.0,0.00024867,2]
[400131679,1767142252955,-500.0,0.00024867,2]
[400131680,1767142252968,-151.0,0.00024867,2]
[400131681,1767142252978,-1000.0,0.00024867,2]
[400131682,1767142252987,-151.0,0.00024867,2]
[400131683,1767142252997,-500.0,0.00024867,2]
[400131684,1767142253007,-1000.0,0.00024867,2]
[400131685,1767142253017,-500.0,0.00024867,2]
[400131686,1767142253027,-1000.0,0.00024867,2]
[400131687,1767142253037,-500.0,0.00024867,2]
[400131688,1767142253047,-1000.0,0.00024867,2]
[400131689,1767142253058,-500.0,0.00024867,2]
[400131690,1767142253067,-1000.0,0.00024867,2]
[400131691,1767142253077,-500.0,0.00024867,2]
[400131692,1767142253087,-634.77180688,0.00024867,2]
[400131693,1767142253096,-500.0,0.00024867,2]
[400131694,1767142253106,-500.0,0.00024867,2]
[400131695,1767142253115,-500.0,0.00024867,2]
[400131696,1767142253125,-500.0,0.00024867,2]
[400131697,1767142253134,-496.47127164,0.00024867,2]
[400131698,1767142253144,-500.0,0.00024867,2]
[400131699,1767142253154,-500.0,0.00024867,2]
[400131700,1767142253168,-500.0,0.00024867,2]
[400131701,1767142253177,-500.0,0.00024867,2]
[400131702,1767142253187,-2398.4119403,0.00024867,2]
[400131703,1767142253197,-151.0,0.00024867,2]
[400131704,1767142253207,-800.0,0.00024873,2]
[400131705,1767142253216,-1095.77958961,0.00024898,6]
[400131706,1767142253226,-200.0,0.00024899,2]
[400131707,1767142253235,-11608.45,0.000249,2]
[400131708,1767142253245,-151.0,0.000249,7]
[400131709,1767142253254,-155.658401,0.000249,7]
[400131710,1767142253264,-498.95073,0.000249,7]
[400131711,1767142253273,-498.95073,0.000249,7]
[400131712,1767142253283,-498.95073,0.000249,7]
[400131713,1767142253293,-498.95073,0.000249,7]
[400131714,1767142253302,-1000.0,0.000249,2]
[400131715,1767142253312,-1000.0,0.000249,2]
[400131716,1767142253322,-1000.0,0.000249,2]
[400131717,1767142253331,-1000.0,0.000249,2]
[400131718,1767142253341,-1000.0,0.000249,2]
[400131719,1767142253350,-1000.0,0.000249,2]
[400131720,1767142253360,-1000.0,0.000249,2]
[400131721,1767142253369,-1000.0,0.000249,2]
[400131722,1767142253379,-1000.0,0.000249,2]
[400131723,1767142253389,-1000.0,0.000249,2]
[400131724,1767142253399,-151.0,0.000249,7]
[400131725,1767142253409,-217.220488,0.000249,7]
[400131726,1767142253419,-217.220488,0.000249,7]
[400131727,1767142253429,-217.220488,0.000249,7]
[400131728,1767142253439,-217.220488,0.000249,7]
[400131729,1767142253448,-467731.414116,0.000249,2]
[400131730,1767142253458,-1000.0,0.000249,2]
[400131731,1767142253467,-1000.0,0.000249,2]
[400131732,1767142253476,-1000.0,0.000249,2]
[400131733,1767142253486,-1003.36208938,0.000249,2]
[400131734,1767142253496,-485.490684,0.000249,7]
[400131735,1767142253505,-485.490684,0.000249,7]
[400131736,1767142253515,-485.490684,0.000249,7]
[400131737,1767142253525,-485.490684,0.000249,7]
[400131738,1767142253535,-151.0,0.000249,2]
[400131739,1767142253544,-151.0,0.000249,2]
[400131740,1767142253554,-151.0,0.000249,2]
[400131741,1767142253564,-151.0,0.000249,2]
[400131742,1767142253574,-151.0,0.000249,2]
[400131743,1767142253584,-151.0,0.000249,2]
[400131744,1767142253594,-151.0,0.000249,2]
[400131745,1767142253604,-151.0,0.000249,2]
[400131746,1767142253613,-151.0,0.000249,2]
[400131747,1767142253624,-151.0,0.000249,2]
[400131748,1767142253633,-151.0,0.000249,2]
[400131749,1767142253643,-151.0,0.000249,2]
[400131750,1767142253653,-151.0,0.000249,2]
[400131751,1767142253663,-151.0,0.000249,2]
[400131752,1767142253673,-202.88839681,0.000249,2]
[400131753,1767142253683,-151.0,0.000249,7]
[400131754,1767142253692,-151.0,0.000249,7]
[400131755,1767142253702,-993.05,0.00024931,2]
[400131756,1767142253711,-4192.77,0.00024931,2]
[400131757,1767142253721,-500.0,0.00024943,2]
[400131758,1767142253730,-500.0,0.00024943,2]
[400131759,1767142253740,-200.0,0.00024999,2]
[400131760,1767142253750,-204.169731,0.00024999,2]
[400131761,1767142253759,-10390.32906121,0.00025,2]
[400131762,1767142253768,-27566.9906356,0.00025,15]
[400131763,1767142253778,-207.61,0.00025,7]
[400131764,1767142253788,-1041.66666667,0.00025,3]
[400131765,1767142253798,-1041.66666667,0.00025,7]
[400131766,1767142253808,-8791.8759073,0.00025,2]
[400131767,1767142253818,-2000.0,0.00025,7]
[400131768,1767142253828,-185.35259798,0.00025093,7]
[400131769,1767142253838,-249.29695624,0.00025172,63]
[400131770,1767142253848,-1020.34681612,0.00025193,2]
[400131771,1767142253858,-579.46320172,0.000252,5]
[400131772,1767142253867,-993.05,0.00025205,2]
[400131773,1767142253877,-4192.77,0.00025205,2]
[400131774,1767142253887,-500.0,0.00025233,7]
[400131775,1767142253897,-571.83,0.00025377,30]
[400131776,1767142253907,-187.78006525,0.00025415,2]
[400131777,1767142253917,-514.84070869,0.00025415,2]
[400131778,1767142253927,-2487.15318209,0.00025415,2]
[400131779,1767142253936,-151.0,0.00025415,2]
[400131780,1767142253946,-185.35259799,0.00025424,7]
[400131781,1767142253956,-249.29695624,0.00025461,79]
[400131782,1767142253965,-900.0,0.00025469,3]
[400131783,1767142253974,-700.0,0.00025471,7]
[400131784,1767142253984,-993.05,0.00025479,2]
[400131785,1767142253993,-4192.77,0.00025479,2]
[400131786,1767142254003,-3000.0,0.000255,2]
[400131787,1767142254013,-1000.0,0.000255,2]
[400131788,1767142254023,-3000.0,0.0002551,2]
[400131789,1767142254033,-3000.0,0.0002552,2]
[400131790,1767142254042,-3000.0,0.0002553,2]
[400131791,1767142254052,-3000.0,0.0002554,2]
[400131792,1767142254061,-3000.0,0.0002555,2]
[400131793,1767142254070,-3000.0,0.0002556,2]
[400131794,1767142254079,-151.0,0.0002556,7]
[400131795,1767142254088,-3000.0,0.0002557,2]
[400131796,1767142254098,-3000.0,0.0002558,2]
[400131797,1767142254107,-3000.0,0.0002559,2]
[400131798,1767142254117,-2403.0,0.00025592,2]
[400131799,1767142254126,-3000.0,0.000256,2]
[400131800,1767142254136,-1053.31,0.000256,14]
[400131801,1767142254145,-3000.0,0.0002561,2]
[400131802,1767142254154,-3000.0,0.0002562,2]
[400131803,1767142254167,-3000.0,0.0002563,2]
[400131804,1767142254179,-3000.0,0.0002564,2]
[400131805,1767142254188,-3000.0,0.0002565,2]
[400131806,1767142254198,-3000.0,0.0002566,2]
[400131807,1767142254207,-3000.0,0.0002567,2]
[400131808,1767142254216,-3000.0,0.0002568,2]
[400131809,1767142254225,-3000.0,0.0002569,2]
[400131810,1767142254235,-3000.0,0.000257,2]
[400131811,1767142254244,-3000.0,0.0002571,2]
[400131812,1767142254253,-3000.0,0.0002572,2]
[400131813,1767142254263,-3000.0,0.0002573,2]
[400131814,1767142254272,-3000.0,0.0002574,2]
[400131815,1767142254281,-3000.0,0.0002575,2]
[400131816,1767142254291,-249.29695624,0.0002575,94]
[400131817,1767142254300,-993.05,0.00025753,2]
[400131818,1767142254309,-4192.77,0.00025753,2]
[400131819,1767142254319,-3000.0,0.0002576,2]
[400131820,1767142254328,-3000.0,0.0002577,2]
[400131821,1767142254337,-3000.0,0.0002578,2]
[400131822,1767142254347,-2403.0,0.00025787,7]
[400131823,1767142254356,-222.9,0.00025788,2]
[400131824,1767142254366,-3000.0,0.0002579,2]
[400131825,1767142254375,-3000.0,0.000258,2]
[400131826,1767142254384,-3000.0,0.0002581,2]
[400131827,1767142254393,-5315.810871,0.0002582,2]
[400131828,1767142254403,-500.0,0.00025839,7]
[400131829,1767142254413,-2403.0,0.00025859,2]
[400131830,1767142254423,-2251.63207437,0.0002587,2]
[400131831,1767142254432,-5888.0,0.00025888,2]
[400131832,1767142254441,-2403.0,0.00025901,2]
[400131833,1767142254451,-700.0,0.0002595,7]
[400131834,1767142254461,-206.15825334,0.00025962,16]
[400131835,1767142254471,-225.17491558,0.00025963,2]
[400131836,1767142254480,-533.88981491,0.00025963,2]
[400131837,1767142254490,-2579.17784983,0.00025963,2]
[400131838,1767142254499,-151.0,0.00025963,2]
[400131839,1767142254508,-39742.13262439,0.00026,10]
[400131840,1767142254517,-529.2410511,0.00026,2]
[400131841,1767142254526,-19489.81,0.00026,2]
[400131842,1767142254536,-1041.66666667,0.00026,10]
[400131843,1767142254544,-161.0,0.00026,5]
[400131844,1767142254554,-2403.0,0.00026019,2]
[400131845,1767142254563,-993.05,0.00026027,2]
[400131846,1767142254573,-4192.77,0.00026027,2]
[400131847,1767142254582,-249.29695624,0.00026039,110]
[400131848,1767142254591,-263.1590271,0.00026104,6]
[400131849,1767142254600,-2403.0,0.00026147,2]
[400131850,1767142254708,-500.0,0.0002619,2]
[400131851,1767142254718,-500.0,0.0002619,2]
[400131852,1767142254727,-164.88,0.000262,7]
[400131853,1767142254737,-10000.0,0.00026201,2]
[400131854,1767142254746,-700.0,0.00026204,7]
[400131855,1767142254755,-700.0,0.00026212,7]
[400131856,1767142254765,-172.91762854,0.00026219,2]
[400131857,1767142254774,-349.70037174,0.00026219,2]
[400131858,1767142254783,-629.46066914,0.00026219,2]
[400131859,1767142254792,-1119.04118958,0.00026219,2]
[400131860,1767142254802,-1748.50185872,0.00026219,2]
[400131861,1767142254811,-2517.84267656,0.00026219,2]
[400131862,1767142254821,-3427.0636431,0.00026219,2]
[400131863,1767142254831,-4476.16475833,0.00026219,2]
[400131864,1767142254840,-323.00637748,0.00026219,2]
[400131865,1767142254850,-368.78099555,0.00026219,2]
[400131866,1767142254859,-332.71390172,0.00026227,2]
[400131867,1767142254868,-380.24445911,0.00026227,2]
[400131868,1767142254878,-594.13196736,0.00026227,2]
[400131869,1767142254888,-350.18729622,0.00026227,2]
[400131870,1767142254898,-630.33713319,0.00026227,2]
[400131871,1767142254908,-1120.5993479,0.00026227,2]
[400131872,1767142254917,-1750.93648109,0.00026227,2]
[400131873,1767142254926,-2521.34853277,0.00026227,2]
[400131874,1767142254936,-3431.83550294,0.00026227,2]
[400131875,1767142254946,-4482.3973916,0.00026227,2]
[400131876,1767142254955,-5673.03419874,0.00026227,2]
[400131877,1767142254965,-7003.74592437,0.00026227,2]
[400131878,1767142254974,-248.97939027,0.00026227,2]
[400131879,1767142254983,-284.5478746,0.00026227,2]
[400131880,1767142254992,-444.60605406,0.00026227,2]
[400131881,1767142255002,-207.61,0.000263,7]
[400131882,1767142255012,-993.05,0.00026301,2]
[400131883,1767142255021,-4192.77,0.00026301,2]
[400131884,1767142255031,-700.0,0.0002632,7]
[400131885,1767142255040,-700.0,0.00026342,7]
[400131886,1767142255050,-667.13,0.00026353,30]
[400131887,1767142255059,-1000.0,0.0002638,30]
[400131888,1767142255068,-1000.0,0.0002638,30]
[400131889,1767142255078,-11608.45,0.000264,2]
[400131890,1767142255087,-151.0,0.00026502,7]
[400131891,1767142255096,-2403.0,0.00026502,2]
[400131892,1767142255105,-553.64373807,0.00026511,2]
[400131893,1767142255115,-2674.60743027,0.00026511,2]
[400131894,1767142255124,-151.0,0.00026511,2]
[400131895,1767142255134,-5888.0,0.00026558,7]
[400131896,1767142255143,-993.05,0.00026575,2]
[400131897,1767142255153,-217.220488,0.00026575,7]
[400131898,1767142255166,-217.220488,0.00026575,7]
[400131899,1767142255175,-217.220488,0.00026575,7]
[400131900,1767142255185,-217.220479,0.00026575,7]
[400131901,1767142255194,-4192.77,0.00026575,2]
[400131902,1767142255203,-5888.0,0.00026621,2]
[400131903,1767142255212,-498.95073,0.00026621,7]
[400131904,1767142255221,-498.95073,0.00026621,7]
[400131905,1767142255231,-498.95073,0.00026621,7]
[400131906,1767142255240,-498.950729,0.00026621,7]
[400131907,1767142255250,-485.490684,0.00026621,7]
[400131908,1767142255260,-485.490684,0.00026621,7]
[400131909,1767142255269,-485.490684,0.00026621,7]
[400131910,1767142255279,-485.490684,0.00026621,7]
[400131911,1767142255289,-151.0,0.00026621,7]
[400131912,1767142255299,-151.0,0.00026621,7]
[400131913,1767142255308,-614.040808,0.00026676,2]
[400131914,1767142255317,-23617.3,0.000267,3]
[400131915,1767142255327,-1808.2093343,0.00026739,2]
[400131916,1767142255337,-185.19010859,0.00026796,2]
[400131917,1767142255347,-5888.0,0.00026825,7]
[400131918,1767142255356,-546.69949428,0.00026834,2]
[400131919,1767142255365,-993.05,0.00026849,2]
[400131920,1767142255375,-4192.77,0.00026849,2]
[400131921,1767142255385,-802.0,0.00026936,2]
[400131922,1767142255395,-5888.0,0.00026993,7]
[400131923,1767142255404,-400.0,0.00027,2]
[400131924,1767142255414,-1267.74428336,0.00027,2]
[400131925,1767142255424,-167.0,0.00027,7]
[400131926,1767142255433,-574.12855637,0.00027059,2]
[400131927,1767142255443,-151.0,0.00027059,2]
[400131928,1767142255452,-1053.31,0.000271,14]
[400131929,1767142255462,-993.05,0.00027123,2]
[400131930,1767142255471,-4192.77,0.00027123,2]
[400131931,1767142255481,-206.15825334,0.00027166,17]
[400131932,1767142255490,-222.9,0.0002719,2]
[400131933,1767142255500,-700.0,0.00027195,7]
[400131934,1767142255510,-1020.34681612,0.0002725,2]
[400131935,1767142255519,-5888.0,0.00027304,7]
[400131936,1767142255528,-5888.0,0.0002732,2]
[400131937,1767142255538,-762.44,0.00027329,30]
[400131938,1767142255547,-568.73029361,0.0002739,7]
[400131939,1767142255557,-150.0,0.0002739,2]
[400131940,1767142255566,-993.05,0.00027397,2]
[400131941,1767142255576,-4192.77,0.00027397,2]
[400131942,1767142255585,-299.0,0.00027397,2]
[400131943,1767142255594,-299.0,0.00027397,2]
[400131944,1767142255606,-299.0,0.00027397,2]
[400131945,1767142255617,-299.0,0.00027397,2]
[400131946,1767142255627,-299.0,0.00027397,2]
[400131947,1767142255637,-299.0,0.00027397,2]
[400131948,1767142255651,-299.0,0.00027397,2]
[400131949,1767142255662,-299.0,0.00027397,2]
[400131950,1767142255671,-299.0,0.00027397,2]
[400131951,1767142255680,-299.0,0.00027397,2]
[400131952,1767142255690,-299.0,0.00027397,2]
[400131953,1767142255699,-299.0,0.00027397,2]
[400131954,1767142255708,-299.0,0.00027397,2]
[400131955,1767142255717,-299.0,0.00027397,2]
[400131956,1767142255726,-299.0,0.00027397,2]
[400131957,1767142255736,-299.0,0.00027397,2]
[400131958,1767142255746,-299.0,0.00027397,2]
[400131959,1767142255755,-299.0,0.00027397,2]
[400131960,1767142255764,-299.0,0.00027397,2]
[400131961,1767142255774,-299.0,0.00027397,2]
[400131962,1767142255784,-299.0,0.00027397,2]
[400131963,1767142255793,-299.0,0.00027397,2]
[400131964,1767142255802,-299.0,0.00027397,2]
[400131965,1767142255812,-299.0,0.00027397,2]
[400131966,1767142255821,-299.0,0.00027397,2]
[400131967,1767142255831,-299.0,0.00027397,2]
[400131968,1767142255840,-299.0,0.00027397,2]
[400131969,1767142255849,-299.0,0.00027397,2]
[400131970,1767142255859,-299.0,0.00027397,2]
[400131971,1767142255868,-299.0,0.00027397,2]
[400131972,1767142255878,-299.0,0.00027397,2]
[400131973,1767142255887,-299.0,0.00027397,2]
[400131974,1767142255897,-151.0,0.00027397,7]
[400131975,1767142255906,-151.0,0.00027397,7]
[400131976,1767142255915,-151.0,0.00027397,7]
[400131977,1767142255925,-151.0,0.00027397,7]
[400131978,1767142255935,-151.0,0.00027397,7]
[400131979,1767142255946,-151.0,0.00027397,7]
[400131980,1767142255955,-151.0,0.00027397,7]
[400131981,1767142255965,-151.0,0.00027397,7]
[400131982,1767142255975,-151.0,0.00027397,7]
[400131983,1767142255984,-151.0,0.00027397,7]
[400131984,1767142255994,-151.0,0.00027397,7]
[400131985,1767142256009,-151.0,0.00027397,7]
[400131986,1767142256023,-151.0,0.00027397,7]
[400131987,1767142256033,-151.0,0.00027397,7]
[400131988,1767142256043,-151.0,0.00027397,7]
[400131989,1767142256052,-151.0,0.00027397,7]
[400131990,1767142256062,-151.0,0.00027397,7]
[400131991,1767142256071,-299.8393676,0.00027397,7]
[400131992,1767142256080,-151.0,0.00027397,7]
[400131993,1767142256089,-151.0,0.00027397,7]
[400131994,1767142256099,-151.0,0.00027397,7]
[400131995,1767142256108,-151.0,0.00027397,7]
[400131996,1767142256118,-151.0,0.00027397,7]
[400131997,1767142256128,-151.0,0.00027397,7]
[400131998,1767142256138,-151.0,0.00027397,7]
[400131999,1767142256148,-151.0,0.00027397,7]
[400132000,1767142256157,-151.0,0.00027397,7]
[400132001,1767142256166,-151.0,0.00027397,7]
[400132002,1767142256176,-221.765393,0.00027397,7]
[400132003,1767142256188,-151.0,0.00027397,7]
[400132004,1767142256199,-151.0,0.00027397,7]
[400132005,1767142256209,-199.075747,0.00027397,7]
[400132006,1767142256219,-151.0,0.00027397,7]
[400132007,1767142256228,-151.0,0.00027397,7]
[400132008,1767142256237,-151.0,0.00027397,7]
[400132009,1767142256247,-151.0,0.00027397,7]
[400132010,1767142256257,-151.0,0.00027397,7]
[400132011,1767142256267,-151.0,0.00027397,7]
[400132012,1767142256276,-151.0,0.00027397,7]
[400132013,1767142256286,-151.0,0.00027397,7]
[400132014,1767142256295,-151.0,0.00027397,7]
[400132015,1767142256305,-151.0,0.00027397,7]
[400132016,1767142256314,-151.0,0.00027397,7]
[400132017,1767142256323,-151.0,0.00027397,7]
[400132018,1767142256332,-151.0,0.00027397,7]
[400132019,1767142256342,-151.0,0.00027397,7]
[400132020,1767142256351,-151.0,0.00027397,7]
[400132021,1767142256360,-151.0,0.00027397,7]
[400132022,1767142256369,-151.0,0.00027397,7]
[400132023,1767142256379,-261.206182,0.00027397,7]
[400132024,1767142256388,-151.0,0.00027397,7]
[400132025,1767142256397,-151.0,0.00027397,7]
[400132026,1767142256406,-151.0,0.00027397,7]
[400132027,1767142256415,-151.0,0.00027397,7]
[400132028,1767142256425,-151.0,0.00027397,7]
[400132029,1767142256434,-151.0,0.00027397,7]
[400132030,1767142256444,-151.0,0.00027397,7]
[400132031,1767142256453,-151.0,0.00027397,7]
[400132032,1767142256463,-151.0,0.00027397,7]
[400132033,1767142256472,-151.0,0.00027397,7]
[400132034,1767142256483,-151.0,0.00027397,7]
[400132035,1767142256493,-151.0,0.00027397,7]
[400132036,1767142256503,-151.0,0.00027397,7]
[400132037,1767142256513,-151.0,0.00027397,7]
[400132038,1767142256523,-151.0,0.00027397,7]
[400132039,1767142256532,-151.0,0.00027397,7]
[400132040,1767142256542,-151.0,0.00027397,7]
[400132041,1767142256551,-181.770841,0.00027397,7]
[400132042,1767142256561,-151.0,0.00027397,7]
[400132043,1767142256571,-151.0,0.00027397,7]
[400132044,1767142256580,-151.0,0.00027397,7]
[400132045,1767142256589,-151.0,0.00027397,7]
[400132046,1767142256598,-151.0,0.00027397,7]
[400132047,1767142256607,-151.0,0.00027397,7]
[400132048,1767142256617,-151.0,0.00027397,7]
[400132049,1767142256627,-151.0,0.00027397,7]
[400132050,1767142256638,-151.0,0.00027397,7]
[400132051,1767142256647,-151.0,0.00027397,7]
[400132052,1767142256657,-295.014215,0.00027397,7]
[400132053,1767142256666,-151.0,0.00027397,7]
[400132054,1767142256676,-151.0,0.00027397,7]
[400132055,1767142256685,-151.0,0.00027397,7]
[400132056,1767142256695,-151.0,0.00027397,7]
[400132057,1767142256704,-151.0,0.00027397,7]
[400132058,1767142256713,-182.655177,0.00027397,7]
[400132059,1767142256723,-154.653823,0.00027397,7]
[400132060,1767142256732,-151.0,0.00027397,7]
[400132061,1767142256741,-151.0,0.00027397,7]
[400132062,1767142256751,-151.0,0.00027397,7]
[400132063,1767142256760,-151.0,0.00027397,7]
[400132064,1767142256770,-151.0,0.00027397,7]
[400132065,1767142256780,-151.0,0.00027397,7]
[400132066,1767142256790,-262.565657,0.00027397,7]
[400132067,1767142256799,-486.568435,0.00027397,7]
[400132068,1767142256808,-486.568435,0.00027397,7]
[400132069,1767142256920,-486.568435,0.00027397,7]
[400132070,1767142256930,-486.568435,0.00027397,7]
[400132071,1767142256939,-486.568435,0.00027397,7]
[400132072,1767142256949,-486.568435,0.00027397,7]
[400132073,1767142256959,-486.568435,0.00027397,7]
[400132074,1767142256969,-486.568435,0.00027397,7]
[400132075,1767142256978,-486.568435,0.00027397,7]
[400132076,1767142256988,-486.568435,0.00027397,7]
[400132077,1767142256998,-486.568435,0.00027397,7]
[400132078,1767142257007,-486.568435,0.00027397,7]
[400132079,1767142257017,-486.568435,0.00027397,7]
[400132080,1767142257027,-486.568435,0.00027397,7]
[400132081,1767142257037,-486.568435,0.00027397,7]
[400132082,1767142257046,-486.568435,0.00027397,7]
[400132083,1767142257056,-151.0,0.00027397,7]
[400132084,1767142257066,-151.0,0.00027397,7]
[400132085,1767142257076,-151.0,0.00027397,7]
[400132086,1767142257087,-151.0,0.00027397,7]
[400132087,1767142257097,-151.0,0.00027397,7]
[400132088,1767142257107,-281.461771,0.00027397,7]
[400132089,1767142257116,-151.0,0.00027397,7]
[400132090,1767142257126,-151.0,0.00027397,7]
[400132091,1767142257135,-151.0,0.00027397,7]
[400132092,1767142257145,-151.0,0.00027397,7]
[400132093,1767142257155,-151.0,0.00027397,7]
[400132094,1767142257167,-151.0,0.00027397,7]
[400132095,1767142257177,-151.0,0.00027397,7]
[400132096,1767142257186,-151.0,0.00027397,7]
[400132097,1767142257196,-151.0,0.00027397,7]
[400132098,1767142257206,-151.0,0.00027397,7]
[400132099,1767142257216,-151.0,0.00027397,7]
[400132100,1767142257225,-151.0,0.00027397,7]
[400132101,1767142257236,-276.652553,0.00027397,7]
[400132102,1767142257245,-151.0,0.00027397,7]
[400132103,1767142257254,-151.0,0.00027397,7]
[400132104,1767142257263,-151.0,0.00027397,7]
[400132105,1767142257272,-151.0,0.00027397,7]
[400132106,1767142257282,-151.0,0.00027397,7]
[400132107,1767142257291,-151.0,0.00027397,7]
[400132108,1767142257300,-151.0,0.00027397,7]
[400132109,1767142257310,-151.0,0.00027397,7]
[400132110,1767142257318,-151.0,0.00027397,7]
[400132111,1767142257328,-151.0,0.00027397,7]
[400132112,1767142257338,-151.0,0.00027397,7]
[400132113,1767142257347,-151.0,0.00027397,7]
[400132114,1767142257357,-151.0,0.00027397,7]
[400132115,1767142257366,-151.0,0.00027397,7]
[400132116,1767142257375,-151.0,0.00027397,7]
[400132117,1767142257385,-151.0,0.00027397,7]
[400132118,1767142257394,-151.0,0.00027397,7]
[400132119,1767142257403,-151.0,0.00027397,7]
[400132120,1767142257413,-151.0,0.00027397,7]
[400132121,1767142257422,-151.0,0.00027397,7]
[400132122,1767142257432,-151.0,0.00027397,7]
[400132123,1767142257441,-193.403023,0.00027397,7]
[400132124,1767142257450,-151.0,0.00027397,7]
[400132125,1767142257459,-151.0,0.00027397,7]
[400132126,1767142257469,-151.0,0.00027397,7]
[400132127,1767142257478,-152.601321,0.00027397,7]
[400132128,1767142257487,-151.0,0.00027397,7]
[400132129,1767142257497,-151.0,0.00027397,7]
[400132130,1767142257507,-151.0,0.00027397,7]
[400132131,1767142257516,-151.0,0.00027397,7]
[400132132,1767142257527,-151.0,0.00027397,7]
[400132133,1767142257536,-195.021788,0.00027397,7]
[400132134,1767142257546,-216.974352,0.00027397,7]
[400132135,1767142257556,-216.974352,0.00027397,7]
[400132136,1767142257565,-216.974352,0.00027397,7]
[400132137,1767142257575,-216.974352,0.00027397,7]
[400132138,1767142257584,-216.974352,0.00027397,7]
[400132139,1767142257593,-216.974352,0.00027397,7]
[400132140,1767142257603,-216.974352,0.00027397,7]
[400132141,1767142257612,-216.974352,0.00027397,7]
[400132142,1767142257622,-216.974352,0.00027397,7]
[400132143,1767142257632,-216.974352,0.00027397,7]
[400132144,1767142257641,-216.974352,0.00027397,7]
[400132145,1767142257650,-216.974352,0.00027397,7]
[400132146,1767142257659,-216.974352,0.00027397,7]
[400132147,1767142257669,-216.974352,0.00027397,7]
[400132148,1767142257679,-216.974352,0.00027397,7]
[400132149,1767142257689,-216.974352,0.00027397,7]
[400132150,1767142257699,-216.974352,0.00027397,7]
[400132151,1767142257708,-216.974352,0.00027397,7]
[400132152,1767142257718,-216.974352,0.00027397,7]
[400132153,1767142257727,-216.974344,0.00027397,7]
[400132154,1767142257736,-167.175208,0.00027397,7]
[400132155,1767142257746,-151.0,0.00027397,7]
[400132156,1767142257756,-167.175208,0.00027397,7]
[400132157,1767142257766,-151.0,0.00027397,7]
[400132158,1767142257775,-167.175208,0.00027397,7]
[400132159,1767142257784,-151.0,0.00027397,7]
[400132160,1767142257793,-151.0,0.00027397,7]
[400132161,1767142257803,-167.175208,0.00027397,7]
[400132162,1767142257813,-159.415945,0.00027397,7]